Cogmind - Beta 13 @@@ ROGUE MODE // 2024.04.20 @ 01:06:28 Player: H3-RMN Result: Destroyed by S-27 Virus with Autogun Performance ------------- Evolutions (4) 2000 Regions Visited (4) 800 Robots Destroyed (45) 225 Value Destroyed (1035) 1035 Prototype IDs (14) 280 Alien Tech Used (0) 0 Bonus (-11) -11 TOTAL SCORE: 4329 Bonus ------- High Alert Combat Kills 77 Friendly Fire -88 Cogmind --------- Core Integrity 0/850 Matter 227/300 Energy 94/100 System Corruption 1% Temperature Cool (0) Movement Core (50) Location -6/Factory Parts ------- > --- POWER (1) -------- (None) > --- PROPULSION (4) --- (None) > --- UTILITY (8) ------ (None) > --- WEAPON (2) ------- (None) > --- INVENTORY (5) ---- Humpback Long-range Tractor Beam Multitool Peak State ------------ > --- POWER ------------ Engine Construct > --- PROPULSION ------- Cargo-Spiked Exoskeleton Compact Wheel Compact Wheel Compact Wheel > --- UTILITY ---------- Armored Scrap Engine Advanced Heat Sink Humpback Hardened Medium Armor Plating Insulated Plating Focal Shield > --- WEAPON ----------- Heavy Assault Rifle Slug Cannon > --- INVENTORY -------- Advanced Heat Sink Advanced Heat Sink High-capacity Storage Unit Humpback Humpback Armor Integrity Analyzer Weapon Cycler Hardened Medium Armor Plating Makeshift Light Armor Plating Makeshift Light Armor Plating Hardlight Generator Authchip [Propulsion] Authchip [Propulsion] Authchip [Propulsion] Authchip [Storage] Authchip [Weapon] Long-range Tractor Beam Beamcaster Improved Grenade Launcher Plasma Cutter Multitool Heavy Flail Makeshift Sword Piercing Trap [Rating: 60] Favorites ----------- Power Subdweller Power Source Engine Subdweller Power Source Propulsion Wheel Treads Light Treads Leg Constructs Wheel Wheel Flight Unit VTOL Module Utility Humpback Device Subdweller Optics Storage Humpback Processor Improved Targeting Computer Hackware System Shield Protection Makeshift Light Armor Plating Weapon Subdweller Laser Energy Gun Subdweller Laser Energy Cannon Subdweller Beam Cannon Ballistic Gun Heavy Assault Rifle Ballistic Cannon Battle Cannon Launcher Improved Grenade Launcher Special Weapon Multitool Slashing Weapon Makeshift Sword Build | -11 -10 -10 -8 -6 ------- Run | Yrd Mat Sub Rec Fac Slots Evolved 8 | . . . . 8 Power . | . . . . . Propulsion 2 | . . . . 2 Utility 6 | . . . . 6 Weapon . | . . . . . Parts Attached 70 | 10 6 20 11 23 Power 4 | 1 . 2 1 . Engine 4 | 1 . 2 1 . Core . | . . . . . Reactor . | . . . . . Propulsion 16 | 2 2 5 3 4 Treads 4 | 1 . 1 2 . Leg . | . . . . . Wheel 9 | 1 1 4 1 2 Hover . | . . . . . Flight 3 | . 1 . . 2 Utility 28 | 4 3 6 1 14 Device 11 | 2 2 2 . 5 Storage 6 | 2 . 2 1 1 Processor 1 | . 1 . . . Hackware 2 | . . . . 2 Protection 8 | . . 2 . 6 Artifact . | . . . . . Weapon 22 | 3 1 7 6 5 Energy Gun 8 | 2 . 4 1 1 Energy Cannon 2 | . 1 1 . . Ballistic Gun 4 | 1 . 2 1 . Ballistic Cannon 4 | . . . 3 1 Launcher 1 | . . . . 1 Special Weapon 2 | . . . 1 1 Impact Weapon . | . . . . . Slashing Weapon 1 | . . . . 1 Piercing Weapon . | . . . . . Special Melee Weapon . | . . . . . Unidentified Prototypes 1 | . 1 . . . Parts Lost 26 | . . 2 2 22 Power 1 | . . . . 1 Propulsion 8 | . . . 2 6 Utility 11 | . . 1 . 10 Weapon 6 | . . 1 . 5 Highest Loss Streak 22 | . . 2 2 22 To Critical Strikes 2 | . . . . 2 Average Slot Usage (%) 88 | . 100 96 84 64 Engine 12 | . 14 14 14 4 Treads 10 | . 14 13 10 . Wheel 14 | . 14 14 17 10 Device 6 | . 9 6 . 17 Storage 12 | . 14 12 14 5 Protection 3 | . . 6 . 10 Energy Gun 11 | . 8 19 7 . Energy Cannon 2 | . 6 4 . . Ballistic Gun 7 | . 14 3 9 5 Ballistic Cannon 3 | . . . 10 1 Naked Turns 5 | . . . . 5 Heaviest Build 233 | 12 13 214 214 233 Greatest Support 48 | 10 10 20 43 48 Greatest Overweight (x) 14 | 1 4 10 13 14 Average Overweight (x) 5 | . 1 3 12 6 Largest Inventory Capacity 35 | 8 8 35 35 35 Average Capacity 24 | 7 8 19 34 33 Most Carried 35 | 7 8 27 35 35 Average Carried 21 | 4 7 17 33 25 Final Capacity 35 | 8 8 35 35 5 Final Carried 35 | 7 8 26 35 4 Scrap Engine Consumption 14 | . . . . 14 Constructs Created 2 | . . . . 2 Constructs Modified 2 | . . . . 2 Class Distribution -------------------- 48% | Hauler-Mutant 41% | Mutant 6% | Scavenger-Mutant 3% | Subdweller-Mutant Dominant Class ---------------- Mutant | -10/Materials Mutant | -10/Subcaves Hauler-Mutant | -8/Recycling Hauler-Mutant | -6/Factory Resources | -11 -10 -10 -8 -6 ----------- Run | Yrd Mat Sub Rec Fac Matter Collected 1440 | 421 72 266 253 428 Remotely 220 | . . . . 220 Salvage Created 2167 | 197 79 514 663 714 Parts 108 | 11 3 40 16 38 Haulers Intercepted . | . . . . . Recyclers Shooed 8 | . . . 3 5 Parts Field Recycled . | . . . . . Retrieved Matter . | . . . . . Parts Self-Destructed 6 | . . 6 . . Prevented . | . . . . . Kills | -11 -10 -10 -8 -6 ------- Run | Yrd Mat Sub Rec Fac Combat Hostiles Destroyed 21 | . 2 8 2 9 Melee 1 | . . . . 1 Guns 7 | . . 5 . 2 Cannons 9 | . 2 3 2 2 AOE 4 | . . . . 4 Classes Destroyed 14 | 3 1 5 1 4 Worker 6 | 2 . . . 4 Builder 1 | . . . . 1 Tunneler 3 | 3 . . . . Recycler 12 | 1 . . 8 3 Turret 2 | . . 2 . . Swarmer 5 | . . 2 . 3 Grunt 4 | . 2 . . 2 Brawler 1 | . . . . 1 Sentry 2 | . . . 2 . Hunter 2 | . . . . 2 Programmer 1 | . . . . 1 Artisan 2 | . . 2 . . Cobbler 1 | . . 1 . . Subdweller 6 | . . 6 . . Best Kill Streak 6 | 4 2 3 5 6 Combat Bots Only 4 | . 2 3 2 4 Max Kills in Single Turn 3 | 1 1 1 2 3 Gunslinging . | . . . . . Exploded 3 | . . . . 3 Melee 1 | . . . . 1 Uniques/NPCs Destroyed . | . . . . . Combat | -11 -10 -10 -8 -6 -------- Run | Yrd Mat Sub Rec Fac Hostile Shots Fired 453 | . 2 120 32 299 Missed 128 | . . 45 3 80 Damage Taken 4754 | . 21 981 425 3327 Core 1064 | . . 147 63 854 Absorbed by Shields . | . . . . . Ignored by Resistances 419 | . . . . 419 Core Remaining (%) 58 | 100 . . 16 . Volleys Fired 193 | 25 3 90 19 56 Largest 2 | 2 2 2 2 2 Hottest 140 | 60 80 140 99 75 Shots Fired 319 | 50 7 143 38 81 Gun 228 | 50 4 112 19 43 Cannon 87 | . 3 31 19 34 Launcher 4 | . . . . 4 Special . | . . . . . Kinetic 144 | 25 4 25 21 69 Thermal 146 | 7 3 111 17 8 Explosive 4 | . . . . 4 Electromagnetic 25 | 18 . 7 . . Robot Hit Streak 23 | 5 3 23 7 8 Robot Miss Streak 8 | 2 2 3 3 8 Penetration Max . | . . . . . Secondary Targets 2 | . . 2 . . Max Gunslinging Chain 1 | . . 1 . . Shots Hit Robots 189 | 29 3 86 25 46 Core Hits 89 | 8 2 36 13 30 Critical Kills 4 | . . 1 1 2 Critical Parts Destroyed 1 | . . . . 1 Critical Strikes 11 | 1 . 2 4 4 Burn 1 | . . . . 1 Destroy 6 | . . 2 1 3 Blast 3 | . . . 3 . Corrupt 1 | 1 . . . . Melee Attacks 3 | . . . . 3 Impact . | . . . . . Slashing 3 | . . . . 3 Piercing . | . . . . . Sneak Attacks . | . . . . . Combat Hostiles . | . . . . . Follow-up Attacks . | . . . . . Damage Inflicted 4079 | 313 44 1522 705 1495 Guns 2340 | 313 7 1258 277 485 Cannons 910 | . 37 264 274 335 Explosions 715 | . . . 154 561 Melee 114 | . . . . 114 Ramming . | . . . . . Kinetic 1347 | 99 7 284 287 670 Thermal 1692 | 59 37 1182 264 150 Explosive 715 | . . . 154 561 Electromagnetic 211 | 155 . 56 . . Impact . | . . . . . Slashing 114 | . . . . 114 Piercing . | . . . . . Highest Corruption 1 | . 1 1 1 1 Average Corruption 1 | . 1 1 1 1 Corruption Purged . | . . . . . Corruption Blocked . | . . . . . Effects 42 | . 8 16 16 2 Message Errors 13 | . 2 5 5 1 Matter Fused 12 | . 2 4 5 1 Heat Flow Errors 5 | . 2 1 2 . Energy Discharges 3 | . . 1 2 . Parts Fused 1 | . . . 1 . Data Loss (minor) 5 | . 1 3 1 . Misfires 3 | . 1 2 . . Overload Shots . | . . . . . Overflow Damage 15 | . . 7 8 . Projectiles 7 | . . 7 . . Explosions 8 | . . . 8 . Melee . | . . . . . Knockbacks 5 | . . . . 5 Impact . | . . . . . Kinetic 4 | . . . . 4 Secondary 1 | . . . . 1 Self-Inflicted Damage 21 | . . . . 21 Shots 1 | . . . . 1 Rammed . | . . . . . Targets Rammed . | . . . . . Kicked . | . . . . . Crushed . | . . . . . Highest Temperature 341 | 40 253 156 341 24 Average Temperature 70 | 21 79 31 157 7 Received Heat Transfer 1152 | . 12 414 126 600 Siege Activations . | . . . . . Robots Corrupted . | . . . . . Combat Hostiles . | . . . . . Parts Fried 1 | 1 . . . . Impact Corruptions . | . . . . . Robots Melted . | . . . . . Combat Hostiles . | . . . . . Parts Melted 3 | . . 3 . . Heat Transferred 2461 | 125 74 1604 325 333 Parts Sabotaged . | . . . . . Parts Stolen . | . . . . . Parts Stripped . | . . . . . Power Chain Reactions . | . . . . . Alert | -11 -10 -10 -8 -6 ------- Run | Yrd Mat Sub Rec Fac Peak Influence 686 | 30 55 . 579 686 Initial 664 | . 19 . 519 664 Average 335 | 12 34 . 411 523 Maximum Alert Level 2 | . . . 2 2 Low Security (%) 26 | 100 100 . . . Level 1 35 | . . . 56 27 Level 2 38 | . . . 43 72 Level 3 . | . . . . . Level 4 . | . . . . . Level 5 . | . . . . . High Security . | . . . . . Max Security . | . . . . . Squads Dispatched 7 | . 3 . . 4 Investigation 2 | . 2 . . . Extermination 1 | . . . . 1 Reinforcement 4 | . 1 . . 3 Assault . | . . . . . Garrison . | . . . . . Intercept . | . . . . . Searches Triggered 2 | . . . . 2 Construction Impeded 2 | . . . . 2 Haulers Reinforced . | . . . . . Active Scanning Responses . | . . . . . Cargo Convoy Interrupts . | . . . . . Stealth | -11 -10 -10 -8 -6 --------- Run | Yrd Mat Sub Rec Fac Distress Signals 2 | . 1 . . 1 Communications Jammed . | . . . . . Distress Signals . | . . . . . Times Spotted 112 | . 4 80 2 26 Peak Tracking Total 11 | . 3 11 2 8 Tactical Retreats 5 | . . 4 . 1 Traps | -11 -10 -10 -8 -6 ------- Run | Yrd Mat Sub Rec Fac Traps Triggered 1 | . . 1 . . Indirectly . | . . . . . Trap Hack Attempts . | . . . . . Triggered . | . . . . . Disarmed . | . . . . . Reprogrammed . | . . . . . Reused . | . . . . . Traps Extracted . | . . . . . Installed . | . . . . . Triggered . | . . . . . Most Traps Carried 1 | . . 1 1 1 Machines | -11 -10 -10 -8 -6 ---------- Run | Yrd Mat Sub Rec Fac Machines Disabled 5 | . . 3 2 . Max in Single Turn 1 | . . 1 1 . Machines Repaired . | . . . . . Machines Dismantled . | . . . . . Machines Sabotaged . | . . . . . Overloaded Fab Kills . | . . . . . Hacking | -11 -10 -10 -8 -6 --------- Run | Yrd Mat Sub Rec Fac Machines Accessed 19 | . 4 1 12 2 Terminals 12 | . 4 . 6 2 Fabricators . | . . . . . Repair Stations . | . . . . . Recycling Units 6 | . . . 6 . Scanalyzers . | . . . . . Garrison Access . | . . . . . Total Hacks 58 | . 12 9 30 7 Successful 37 | . 7 9 19 2 Failed 21 | . 5 . 11 5 Catastrophic 4 | . . . 3 1 Database Lockouts . | . . . . . Manual 27 | . 10 . 16 1 Terminals 36 | . 12 . 17 7 Fabricators . | . . . . . Repair Stations . | . . . . . Recycling Units 13 | . . . 13 . Scanalyzers . | . . . . . Garrison Access . | . . . . . Terminal Hacks 21 | . 6 9 5 1 Record 8 | . . 8 . . Part Schematic 5 | . 1 . 3 1 Robot Schematic 2 | . 1 . 1 . Robot Analysis 3 | . 3 . . . Prototype ID Bank 1 | . . . 1 . Locate Traps 1 | . 1 . . . Derelict Proto ID Bank 1 | . . 1 . . Fabricator Hacks . | . . . . . Repair Station Hacks . | . . . . . Recycling Unit Hacks 6 | . . . 6 . Report Inventory 5 | . . . 5 . Retrieve Components 1 | . . . 1 . Scanalyzer . | . . . . . Garrison Access Hacks . | . . . . . Unauthorized Hacks 10 | . 1 . 8 1 Terminals 3 | . 1 . 1 1 Botnet 3 | . 1 . 1 1 Fabricators . | . . . . . Repair Stations . | . . . . . Recycling Units 7 | . . . 7 . Mask 1 | . . . 1 . Tunnel 6 | . . . 6 . Scanalyzers . | . . . . . Garrison Access . | . . . . . Data Cores Recovered . | . . . . . Used . | . . . . . Hacking Detections 11 | . 4 . 6 1 Full Trace Events 9 | . 4 . 5 . Feedback Events 1 | . 1 . . . Corruption 1 | . 1 . . . Feedback Blocked . | . . . . . Robot Schematics Acquired 2 | . 1 . 1 . Robots Built . | . . . . . Authchips . | . . . . . Time . | . . . . . Total Robot Build Rating . | . . . . . Part Schematics Acquired 5 | . 1 . 3 1 Parts Built . | . . . . . Authchips . | . . . . . Time . | . . . . . Total Part Build Rating . | . . . . . Parts Repaired . | . . . . . Time . | . . . . . Parts Recycled . | . . . . . Recycled Matter . | . . . . . Retrieved Matter . | . . . . . Retrieved Components 2 | . . . 2 . Parts Scanalyzed . | . . . . . Part Schematics Acquired . | . . . . . Parts Damaged . | . . . . . Bothacking | -11 -10 -10 -8 -6 ------------ Run | Yrd Mat Sub Rec Fac Used RIF Installer . | . . . . . Robots Hacked . | . . . . . Non-combat . | . . . . . Combat . | . . . . . Robot Hacks Applied . | . . . . . Relay Couplers Released . | . . . . . Fabnet Peak Effective % . | . . . . . Robots Rewired . | . . . . . Allies Hacked . | . . . . . Hacks Repelled . | . . . . . Allies | -11 -10 -10 -8 -6 -------- Run | Yrd Mat Sub Rec Fac Total Allies . | . . . . . Largest Group . | . . . . . Highest-Rated Group . | . . . . . Highest-Rated Ally . | . . . . . Total Orders . | . . . . . Ally Attacks . | . . . . . Total Damage . | . . . . . Kills . | . . . . . Allies Corrupted . | . . . . . Allies Melted . | . . . . . Intel | -11 -10 -10 -8 -6 ------- Run | Yrd Mat Sub Rec Fac Robot Analysis Total 3 | . 3 . . . Derelict Logs Recovered 2 | . . 2 . . Drone Launches . | . . . . . Drone Recoveries . | . . . . . Exploration | -11 -10 -10 -8 -6 ------------- Run | Yrd Mat Sub Rec Fac Turns Passed 5788 | 183 771 2154 1902 778 Spaces Moved 2441 | 100 218 1207 640 276 Core 31 | 3 1 . . 27 Treads 7 | . . 1 6 . Legs . | . . . . . Wheels 2392 | 97 217 1206 634 238 Hover . | . . . . . Flight 11 | . . . . 11 Fastest Speed 32 | 50 95 95 230 32 Average Speed 176 | 89 95 141 277 187 Slowest Speed 480 | 95 250 360 480 310 Overloaded Moves . | . . . . . Propulsion Burnouts . | . . . . . Robots Hopped . | . . . . . Cave-ins Triggered . | . . . . . Exploration Rate (%) 45 | 5 33 78 98 11 Regions Visited 4 Branch Regions 2 Pre-discovered Areas 7 | . . 1 6 . Known Exits Taken . | . . . . . Unknown Exits Taken 4 | 1 1 1 1 . Scrap Searched 5 | . . 5 . . Spaces Dug 1 | . . 1 . . Terrain Destroyed 18 | . . 1 1 16 Melee . | . . . . . Projectile 9 | . . 1 1 7 AOE 9 | . . . . 9 Terrain Rammed . | . . . . . Walls Destroyed . | . . . . . Machines Disabled . | . . . . . Actions | -11 -10 -10 -8 -6 --------- Run | Yrd Mat Sub Rec Fac Total 3634 | 145 776 1517 735 461 Wait 742 | . 539 126 1 76 Move 2437 | 99 217 1206 639 276 Hop . | . . . . . Pick Up 116 | 9 4 46 49 8 Fast Attach 30 | 7 4 9 3 7 Attach 21 | 1 . 2 4 14 Detach 4 | . . . 1 3 Swap 19 | 2 2 9 4 2 Drop 65 | 2 7 28 13 15 Fire 193 | 25 3 90 19 56 Melee 3 | . . . . 3 Ram . | . . . . . Kick . | . . . . . Crush . | . . . . . Escape Stasis . | . . . . . Rewire . | . . . . . Trap . | . . . . . Miscellaneous 4 | . . 1 2 1 Route ------- -11/Scrapyard -10/Materials (discovered 2 exits: [*Min] / *Sub) -10/Subcaves (discovered 2 exits: [*Mat] / *Rec) -8/Recycling -6/Factory History --------- Turn | Location | Event 24 | -11/Scrapyard | Discovered new exit (range 16) 184 | -11/Scrapyard | Entered Materials 311 | -10/Materials | Build established: Mutant 676 | -10/Materials | Discovered new exit (range 16) 941 | -10/Materials | Discovered new exit (range 8) 955 | -10/Materials | Entered Subcaves 1130 | -10/Subcaves | Shifting Twisted Machinery released Slug Cannon 1132 | -10/Subcaves | Shifting Twisted Machinery released Sub. Machine Gun 1165 | -10/Subcaves | Ambushed by swarm of Subdwellers 1167 | -10/Subcaves | Ambushed by Subdwellers from Twisted Machinery 1167 | -10/Subcaves | Ambushed by Subdwellers from Twisted Machinery 1167 | -10/Subcaves | Ambushed by Subdwellers from Twisted Machinery 1167 | -10/Subcaves | Ambushed by Subdwellers from Twisted Machinery 1167 | -10/Subcaves | Ambushed by Subdwellers from Twisted Machinery 1438 | -10/Subcaves | Ambushed by angry Subdweller bent on revenge 1725 | -10/Subcaves | Ambushed by Subdwellers from Twisted Machinery 1807 | -10/Subcaves | Learned location of Zion (-7) 1875 | -10/Subcaves | A swath of the cavern ceiling suddenly collapsed 2182 | -10/Subcaves | Shifting Twisted Machinery released Spk. Treads 2190 | -10/Subcaves | Shifting Twisted Machinery released Flamer 2208 | -10/Subcaves | Shifting Twisted Machinery released Mak. Light Armor Plating 2266 | -10/Subcaves | Discovered new exit (range 13) 2342 | -10/Subcaves | Learned Materials emergency access door positions 2423 | -10/Subcaves | Visited 4L-MR0's lab 2438 | -10/Subcaves | Found Cargo Legs 2739 | -10/Subcaves | Disturbed a concealed Subdweller 2786 | -10/Subcaves | Discovered new exit (range 9) 2799 | -10/Subcaves | Core integrity fell below 50% 2894 | -10/Subcaves | A swath of the cavern ceiling suddenly collapsed 3109 | -10/Subcaves | Entered Recycling 3109 | -8/Recycling | Found Scrap Engine 3237 | -8/Recycling | Build established: Hauler-Mutant 3594 | -8/Recycling | Core integrity fell below 20% 4857 | -8/Recycling | Discovered new exit (range 16) 5011 | -8/Recycling | Entered Factory 5011 | -6/Factory | Evolved 8 slots: Propulsion x2, Utility x6 5361 | -6/Factory | Search patrols dispatched 5711 | -6/Factory | Search patrols dispatched 5767 | -6/Factory | Core integrity fell below 50% 5776 | -6/Factory | Core integrity fell below 20% 5789 | -6/Factory | Destroyed by S-27 Virus with Autogun Last Messages --------------- 05774_ K-01 Serf collects debris. 05775_ U-05 Engineer lays Concrete. 05775_ U-05 Engineer builds a Wall. 05776_ U-05 Engineer lays Concrete. 05776_ R-10 Processor collects Armor Integrity Analyzer. 05776_ U-05 Engineer lays Concrete. 05777_ K-01 Serf collects debris. 05777_ Acquired VTOL Module. 05777_ K-01 Serf collects debris. 05778_ Mak. Sword destroyed. 05778_ K-01 Serf collects debris. 05779_ Acquired 5 matter. 05780_ Acquired VTOL Module. 05780_ R-10 Processor collects Corrupted Authchip [Weapon]. 05781_ K-01 Serf collects debris. 05781_ VTOL Module destroyed. 05783_ K-01 Serf collects debris. 05784_ VTOL Module destroyed. Map ----- +----------------------------------------------------+ | "" ??????????????????????????????????????????????? | | "" ??????????????????????????????????????????????? | | ????????????????????????????????????????????? | | ????????????????????????????????????????????? | | ##???????????????????????????????????????????????? | | ?????????????????????????????????????????????????? | | ?????????????????????????????????????????????????? | | ?????????????????????????????????????????????????? | | ?????????????????????????????????????????????????? | | ?????????????????????????????????????????????????? | | ?????????????????????????????????????????????????? | | ????????????????????????????#????????????????????? | | ??????????????????????????? #????????????????????? | | ??????????????????????????? #????????????????????? | | ??????????????????????????? #????????????????????? | | ###########???????????????? ?????????????????????? | | #???????????????? ?????????????????????? | | #?????????####### ?????????????????????? | | #?????????# ?????????????????????? | | #?????????# ??????????????????????? | | #?????????+ ??????????????????????? | | #?????????# ??????????????????????? | | #?????????# ??????????????????????? | | #?????????# k#?###########??????????? | | #?????????# # ??????????? | | #?????????# @# """"????????????? | | #?????????+ + "" F????????????? | | #?????????# # "" "????????????? | | #####+#####?????????# # ??????????? | | ????# #?????????????# #? #?????????? | | ????# #?????????????# #? #?????????? | | ????# #?????????????# #??""""" #?????????? | | ????# #?????????????# A#??""""" #?????????? | | ????# #?????????????# #???"""" #?????????? | | ????# #?????????????# k#???"??????? ??????????? | | ????# #?????????????# #??????????????????????? | | ????# #?????????????# #??????###?????????????? | | ????# #?????????????# #??? #?????????????? | | ????# #?????????????# #?? #?????????????? | | ????# #?????????????# # #?????????????? | | ????# #???#?????????# + #?????????????? | | ????# #?? #???????# # #?????????????? | | ????# #?? ###???# # #?????????????? | | ????# #?? #??# * # #?????????????? | | ????# #?? ?# % #?????????????? | | ????# #????# # [% #?????????????? | | ????# ##??????# # *%##########?????????????? | | ????# T#????????# [ ############?????????? | | ????# #????????## # #?????????? | | ????# ##????????## # " = #?????????? | +----------------------------------------------------+ Best States ------------- Heat Dissipation 56 Energy Generation 17 Energy Capacity 200 Matter Stores 300 Matter Capacity 300 Sight Range 21 Terrain Scan Range 16 Terrain Scan Density 10 Armor Coverage 800 Resistance: KI 20 Resistance: EM 15 Weapon Cycling 15 Evasion (%) 63 Targeting Accuracy 6 Recoil Reduction 2 Authchip Count 5 Item Schematics ----------------- Cargo Storage Unit | -10/Materials | Hacked Lrn. Missile Launcher | -8/Recycling | Hacked Magnetic Acceleration Cannon | -8/Recycling | Hacked Hacking Suite | -8/Recycling | Hacked Adv. Trap Extractor | -6/Factory | Hacked Robot Schematics ------------------ M-13 Machinist | -10/Materials | Hacked A-02 Transporter | -8/Recycling | Hacked Fabricated ------------ Nothing Alien Tech Used ----------------- None Achievements -------------- None Challenges ------------ None Game ------ Seed SniperTerrainLauncher Manual? 0 Play Time 01:05:29 Cumulative 6.5 hours Start 2024.04.19 @ 23:41:07 End 2024.04.20 @ 01:06:28 Sessions 1 Manual Loads 0 Difficulty Rogue Special Mode None Game No. 4 Rogue 4 Adventurer 0 Explorer 0 Win Type - Total 0 Types 0/0/0/0/0/0/0/0/0 Lore% 12 Gallery% 20 Achievement% 20 Wizard Run 0 Options --------- Layout 1 ASCII 0 Keyboard 0 Movement Mouse Keybinds 0 Fullscreen 1 Font 24/Terminus Map View 50x35 Zoom Use 0% Tactical HUD 1 Map Filters NONE Filters NONE Steam 0 RUN: 3abe9e26-9b3d-4cb8-a0ea-1adf927aa252